bitfinex/quotes_ETHUSD_20240927
["timestamp","ask_amount","ask_price","bid_price","bid_amount"]
[1727440332888,3.75516,2663.1,2662.4,3.0]
[1727440333208,3.75516,2663.1,2662.2,3.7915]
[1727440333540,7.51022,2663.1,2662.4,0.7712]
[1727440333711,3.75529,2663.0,2662.4,0.7712]
[1727440334025,9.21988855,2663.3,2662.5,0.07510891]
[1727440334399,3.75478,2663.3,2662.5,3.83087891]
[1727440334596,3.75478,2663.3,2662.7,0.7742]
[1727440336238,5.46508855,2663.3,2662.7,0.7742]
[1727440336747,5.46508855,2663.3,2662.3,0.8012]
[1727440336748,3.75528,2663.0,2662.3,0.8012]
[1727440336948,5.46508855,2662.9,2662.3,0.8012]
[1727440337150,5.46508855,2662.9,2662.2,3.0]
[1727440337151,5.46508855,2662.9,2662.4,4.13599]
[1727440337318,5.46508855,2663.3,2662.5,0.8235]
[1727440337505,5.46508855,2663.3,2662.6,3.8308021]
[1727440337929,5.46508855,2663.3,2662.6,7.5865021]
[1727440338127,5.46508855,2663.3,2662.6,3.8308021]
[1727440338330,4.51655,2663.6,2662.8,3.75543]
[1727440338644,0.1282747,2663.7,2663.2,3.75478]
[1727440338854,0.1282747,2663.7,2663.3,3.82807859]
[1727440339013,0.1282747,2663.7,2663.3,0.753]
[1727440339353,5.46508855,2663.5,2662.9,0.7901]
[1727440339844,9.21964855,2663.5,2662.9,0.7901]
[1727440340050,3.75481,2663.3,2662.9,0.7901]
[1727440340220,9.21958855,2663.5,2662.9,0.7901]
[1727440340416,5.46508855,2663.5,2662.9,0.7901]
[1727440340751,5.46508855,2663.5,2663.0,0.454544]
[1727440340953,9.21956855,2663.5,2662.9,0.7901]
[1727440341307,9.21956855,2663.5,2662.9,4.5454]
[1727440341308,5.46508855,2663.5,2662.9,4.5454]
[1727440341508,0.1282747,2663.7,2663.1,4.51541]
[1727440341734,0.1282747,2663.7,2663.2,0.07508677]
[1727440342131,3.8825347,2663.7,2663.1,0.7605]
[1727440342332,1.43843002,2663.7,2663.1,0.83559249]
[1727440342651,0.1282747,2663.7,2663.1,4.59059249]
[1727440343015,0.1282747,2663.7,2663.1,4.59060249]
[1727440343364,0.1282747,2663.7,2663.3,0.8265]
[1727440343565,0.1282747,2663.7,2663.4,0.07507868]
[1727440343717,0.1282747,2663.7,2663.5,0.8265]
[1727440343912,0.1282747,2663.7,2663.6,0.0750768]
[1727440344332,0.1282747,2663.7,2663.6,6.8293868]
[1727440344665,0.1282747,2663.7,2663.6,7.97041048]
[1727440344841,0.1282747,2663.7,2663.6,7.89533368]
[1727440345054,0.1282747,2663.7,2663.6,8.44533368]
[1727440345219,0.1282747,2663.7,2663.6,9.27183368]
[1727440345860,0.1282747,2663.7,2663.6,4.96752368]
[1727440346229,0.1282747,2663.7,2663.6,9.3469081]
[1727440346537,0.1282747,2663.7,2663.6,4.96752368]
[1727440346740,0.1282747,2663.7,2663.6,2.04259643]
[1727440347051,0.1282747,2663.7,2663.6,8.20588275]
[1727440347371,0.1282747,2663.7,2663.6,0.8265]
[1727440347737,0.1282747,2663.7,2663.3,0.07507971]
[1727440347942,0.1282747,2663.7,2663.3,0.7839]
[1727440348143,0.1282747,2663.7,2663.4,0.37839]
[1727440348981,8.53312225,2663.7,2663.3,0.7839]
[1727440349474,4.77892225,2663.7,2663.3,0.7839]
[1727440349942,4.77892225,2663.7,2662.8,0.7894]
[1727440350265,8.53312225,2663.7,2662.9,3.0]
[1727440350430,5.46615406,2663.6,2663.0,0.37894]
[1727440350628,5.46615406,2663.6,2662.8,0.7894]
[1727440351447,5.46615406,2663.6,2662.8,4.54482]
[1727440351976,5.46615406,2663.6,2662.9,3.0]
[1727440352558,3.75458,2663.5,2662.8,0.7894]
[1727440353380,3.75458,2663.5,2662.8,3.7894]
[1727440353741,3.75461,2663.4,2662.8,0.7894]
[1727440353934,4.52888,2663.3,2662.6,3.0]
[1727440354135,0.7741,2663.3,2662.5,4.58385]
[1727440354493,4.52884,2663.3,2662.5,0.8281]
[1727440354836,3.75518,2663.0,2662.5,0.8281]
[1727440355038,3.75518,2663.0,2662.3,0.7998]
[1727440355337,5.46615406,2663.2,2662.3,5.387176]
[1727440355338,3.75506,2663.1,2662.3,5.387176]
[1727440355538,3.75517,2663.0,2662.3,0.7998]
[1727440356050,3.75506,2663.1,2662.3,0.7998]
[1727440356738,7.51019,2663.1,2662.3,0.7998]
[1727440356942,5.46615406,2663.2,2662.4,4.211525]
[1727440357265,9.22112406,2663.2,2662.4,4.211585]
[1727440357435,5.46615406,2663.2,2662.5,3.83094887]
[1727440357637,3.75506,2663.1,2662.5,0.88423839]
[1727440357834,7.5102,2663.1,2662.5,0.88423839]
[1727440358077,3.75506,2663.1,2662.5,0.88423839]
[1727440358375,3.75506,2663.1,2662.3,0.7998]
[1727440358590,3.75534,2662.9,2662.3,0.7998]
[1727440358743,3.75506,2663.1,2662.3,0.7998]
[1727440359082,3.75506,2663.1,2662.3,4.55585]
[1727440359243,3.75506,2663.1,2662.3,8.31188]
[1727440359436,3.75506,2663.1,2662.4,4.66972954]
[1727440359883,5.46615406,2663.2,2662.5,3.75586]
[1727440360041,5.46615406,2663.2,2662.5,3.75577]
[1727440360248,3.75453,2663.5,2662.7,0.8228]
[1727440360445,0.1282747,2663.7,2663.0,0.8228]
[1727440360671,7.6367347,2663.7,2663.0,0.89789336]
[1727440360992,7.6367347,2663.7,2662.6,0.8228]
[1727440360993,3.75474,2663.3,2662.6,0.8228]
[1727440361197,4.56184,2663.3,2662.6,0.8228]
[1727440361856,3.75502,2663.1,2662.6,0.8228]
[1727440362063,5.46615406,2663.2,2662.6,0.8228]
[1727440362288,3.75502,2663.1,2662.6,0.8228]
[1727440362592,3.75524,2663.0,2662.6,0.8228]
[1727440362810,5.46615406,2662.8,2662.3,0.7953]
[1727440363102,3.75567,2662.7,2662.3,0.7953]
[1727440363287,13.79678406,2662.8,2662.0,0.8051]
[1727440363598,6.28575406,2662.8,2662.0,0.8051]
[1727440363774,5.46615406,2662.8,2662.2,3.75628]
[1727440364096,12.97607406,2663.2,2662.3,0.821]
[1727440364261,3.75512,2663.1,2662.4,0.07511398]
[1727440364461,3.75512,2663.1,2662.3,4.65217113]
[1727440364908,3.75517,2663.0,2662.3,0.89611113]
[1727440365058,3.75517,2663.0,2662.3,0.821]
[1727440365258,10.63369657,2663.2,2662.3,8.87346023]
[1727440365460,9.22113406,2663.2,2662.4,0.07510844]
[1727440365660,9.97954406,2663.6,2662.5,0.7912]
[1727440365856,5.46615406,2663.6,2662.8,0.7632]
[1727440366105,5.46615406,2663.6,2663.0,4.51834]
[1727440366284,0.7883,2663.9,2663.0,0.83829198]
[1727440366285,4.54222,2663.9,2663.0,0.83829198]
[1727440366460,0.7883,2663.9,2663.1,4.2142972]
[1727440366664,9.21996406,2664.0,2663.2,0.83828538]
[1727440367091,12.97379406,2664.0,2663.2,0.83828538]
[1727440367293,5.46615406,2664.0,2663.3,3.75473]
[1727440367594,5.46615406,2664.0,2663.4,3.82959168]
[1727440367795,0.8233,2664.1,2663.5,4.52175]
[1727440367796,0.035,2664.1,2663.5,4.52175]
[1727440368010,0.035,2664.1,2663.6,0.45968317]
[1727440368204,3.78871,2664.1,2663.5,0.7673]
[1727440368407,3.78871,2664.1,2663.5,3.75437]
[1727440368408,0.035,2664.1,2663.5,3.75437]
[1727440368702,0.035,2664.1,2663.6,4.63058826]
[1727440368903,0.035,2664.1,2663.6,8.18058826]
[1727440369109,0.035,2664.1,2663.6,9.29900483]
[1727440369903,0.035,2664.1,2663.6,1.99469483]
[1727440370106,0.035,2664.1,2663.6,0.8012]
[1727440370779,4.57172,2664.1,2663.6,0.8012]
[1727440371605,4.65187805,2663.9,2663.3,0.7801]
[1727440371812,4.65187805,2663.9,2663.3,0.85517954]
[1727440371962,4.65187805,2663.6,2663.3,0.85517954]
[1727440372169,4.65187805,2663.6,2663.4,0.38551795]
[1727440375686,4.65187805,2663.9,2663.5,0.7665]
[1727440375883,0.035,2664.1,2663.6,7.37938636]
[1727440376195,0.035,2664.1,2663.6,8.14588636]
[1727440376412,0.035,2664.1,2663.6,4.99507543]
[1727440376723,4.65187805,2664.0,2663.6,1.99507543]
[1727440376930,4.65187805,2664.0,2663.6,8.07081]
[1727440377222,4.65187805,2664.0,2663.6,4.3165]
[1727440377535,4.65187805,2664.0,2663.6,4.39157164]
[1727440377819,4.65187805,2664.0,2663.6,3.7665]
[1727440378329,4.65187805,2664.0,2663.6,4.3165]
[1727440378615,4.65187805,2664.0,2663.6,8.96047449]
[1727440378817,4.65187805,2664.0,2663.6,8.88540238]
[1727440379831,4.65187805,2664.0,2663.6,5.13109238]
[1727440379991,4.65187805,2664.0,2663.6,4.65616533]
[1727440380382,0.035,2664.1,2663.6,4.65616533]
[1727440380583,0.035,2664.1,2663.6,13.83505533]
[1727440380794,0.035,2664.1,2663.6,13.75998238]
[1727440381094,4.68687805,2664.1,2663.6,5.13109238]
[1727440381306,4.68687805,2664.1,2663.6,5.20616146]
[1727440381502,4.68687805,2664.1,2663.6,1.65616146]
[1727440381804,4.65187805,2663.8,2663.6,0.7665]
[1727440382199,0.035,2664.1,2663.6,0.7665]
[1727440382400,0.8256,2663.9,2663.3,0.89077531]
[1727440382632,4.57951,2663.9,2663.3,0.8157]
[1727440382836,4.57951,2663.9,2662.7,3.75552]
[1727440382837,4.65187805,2663.8,2662.8,3.75542]
[1727440383119,4.65187805,2663.8,2662.9,5.314454]
[1727440383345,0.8256,2663.9,2663.0,0.07508434]
[1727440383638,0.8256,2663.9,2663.1,4.52181]
[1727440383809,0.8256,2663.9,2663.2,0.0750802]
[1727440384019,0.8256,2663.9,2663.2,7.28961922]
[1727440384241,0.8256,2663.9,2663.2,3.53476922]
[1727440385005,4.57952,2663.9,2663.2,3.53476922]
[1727440385311,4.57952,2663.9,2662.9,3.75521]
[1727440385312,9.23139805,2663.9,2662.9,7.54509]
[1727440385511,3.75408,2663.8,2663.0,0.0750844]
[1727440386015,9.23139805,2663.9,2663.0,0.0750844]
[1727440387502,3.75403,2663.8,2663.1,3.0]
[1727440387703,5.47747805,2663.9,2663.1,0.46158013]
[1727440387928,3.75407,2663.8,2662.9,3.7898]
[1727440388445,9.23137805,2663.9,2662.9,3.7898]
[1727440388810,0.7674,2663.6,2662.9,3.7898]
[1727440389159,4.65187805,2663.3,2662.7,0.8015]
[1727440389367,0.7674,2662.9,2661.8,3.75677]
[1727440389639,0.7795,2662.1,2661.5,0.7865]
[1727440390319,0.7795,2662.1,2661.3,0.7688]
[1727440390519,0.7795,2662.1,2661.6,3.75708]
[1727440390740,0.7795,2662.1,2661.4,3.75736]
[1727440390912,0.7795,2662.1,2661.2,3.75766]
[1727440390913,4.65187805,2661.9,2661.2,3.75761]
[1727440391110,1.5771379,2662.6,2660.8,3.75815]
[1727440391111,4.65187805,2661.6,2660.8,3.75815]
[1727440391355,4.65187805,2661.6,2660.7,0.7688]
[1727440391509,0.7823,2661.2,2660.5,0.07515635]
[1727440391843,0.7823,2661.2,2660.5,3.83381635]
[1727440392049,0.7823,2661.2,2660.4,3.75879]
[1727440392208,0.7823,2661.2,2660.4,3.83395082]
[1727440392546,0.7823,2661.2,2660.5,6.75867]
[1727440392852,0.754,2661.5,2660.8,3.75816]
[1727440393007,0.754,2661.5,2661.2,3.75768]
[1727440393207,0.754,2661.5,2661.3,3.75749]
[1727440393545,0.754,2661.5,2661.0,3.83312198]
[1727440394505,0.754,2661.5,2661.1,3.7578]
[1727440394844,0.754,2661.5,2661.2,3.75768]
[1727440395705,4.65187805,2662.1,2661.2,3.75768]
[1727440395907,0.8333,2662.0,2661.2,3.7576]
[1727440396112,0.8333,2662.0,2661.4,7.51467]
[1727440396341,0.8333,2662.0,2661.0,3.0]
[1727440396342,0.8333,2662.0,2661.8,3.75685]
[1727440396557,0.7933,2662.3,2661.8,3.75685]
[1727440397159,0.7933,2662.3,2662.0,3.75656]
[1727440397450,0.7933,2662.3,2662.0,3.75653]
[1727440397745,0.7933,2662.6,2661.8,3.83186613]
[1727440397954,0.7933,2662.6,2661.8,4.132414]
[1727440398323,0.7933,2662.6,2661.8,3.75674]
[1727440398627,4.65187805,2662.4,2661.4,3.75737]
[1727440398832,4.65187805,2662.1,2661.4,3.75733]
[1727440399124,0.4651878,2662.0,2661.2,3.75762]
[1727440399332,0.4651878,2662.0,2661.0,3.75794]
[1727440399333,0.7809,2661.9,2661.0,0.07514379]
[1727440399630,0.7809,2661.9,2661.2,3.7576]
[1727440400061,0.7809,2661.9,2661.4,3.75736]
[1727440400364,0.7809,2661.9,2661.6,3.75701]
[1727440400540,0.7809,2661.9,2661.7,3.75692]
[1727440400859,0.7809,2661.9,2661.8,3.75685]
[1727440401063,0.7717,2662.5,2661.7,3.83211761]
[1727440401266,1.9124538,2662.5,2661.7,3.75699]
[1727440401625,5.6683238,2662.5,2661.7,3.75699]
[1727440401846,0.7991,2662.0,2661.2,0.75906438]
[1727440402062,0.7991,2662.0,2661.1,3.75778]
[1727440402788,3.75686,2661.8,2660.9,7.51613]
[1727440402970,3.75684,2661.9,2661.0,3.75785]
[1727440403179,4.512464,2661.8,2661.0,3.75785]
[1727440403382,0.755594,2661.8,2661.0,3.75785]
[1727440403686,4.65187805,2661.5,2660.6,4.57756]
[1727440404030,4.65187805,2661.5,2660.8,3.75825]
[1727440404231,4.65187805,2661.5,2660.7,3.7584]
[1727440404433,4.65187805,2661.5,2659.8,4.17930626]
[1727440404434,5.57218286,2661.5,2660.4,3.75874]
[1727440404675,0.7592,2661.4,2660.4,3.75873]
[1727440404833,4.51669,2661.4,2660.5,3.75859]
[1727440405030,5.80926781,2661.4,2660.5,4.592772]
[1727440405333,5.80926781,2661.4,2660.5,0.834182]
[1727440405535,2.05177781,2661.4,2660.6,3.75845]
[1727440405744,2.05177781,2661.4,2660.7,3.83342599]
[1727440405950,2.05177781,2661.4,2660.8,3.75818]
[1727440405951,0.7592,2661.4,2660.8,3.75818]
[1727440406244,0.7844,2661.9,2661.3,3.75746]
[1727440407875,0.7844,2661.9,2661.3,4.5164962]
[1727440408243,0.7844,2661.9,2661.4,3.75741]
[1727440408569,0.7844,2661.9,2661.3,3.75746]
[1727440408771,0.7844,2661.9,2661.2,0.07514152]
[1727440408976,0.7844,2661.9,2661.2,0.45842667]
[1727440409276,0.7844,2661.9,2661.3,3.75748]
[1727440409449,0.7844,2661.9,2661.4,3.8325192]
[1727440410070,0.7844,2661.9,2661.4,0.0751392]
[1727440410360,3.75693,2661.8,2660.9,8.29718]
[1727440410680,3.757,2661.7,2661.0,4.129718]
[1727440411735,3.757,2661.7,2661.0,1.129718]
[1727440411930,4.65187805,2661.8,2660.7,3.7584]
[1727440411931,0.8177,2661.5,2660.7,3.7584]
[1727440412135,3.75743,2661.4,2660.7,3.7584]
[1727440412371,5.46957805,2661.5,2660.7,4.510032]
[1727440412556,5.46957805,2661.5,2660.8,3.75824]
[1727440412757,5.46957805,2661.5,2660.7,3.75833]
[1727440412964,5.46957805,2661.5,2660.7,7.51665]
[1727440413373,0.8177,2661.5,2660.7,3.75832]
[1727440413572,0.8177,2661.5,2660.7,4.51752868]
[1727440413753,4.57498,2661.5,2660.7,4.51752868]
[1727440413954,5.46957805,2661.5,2660.7,0.75920868]
[1727440414347,9.22698805,2661.5,2660.7,4.51756868]
[1727440414542,9.22698805,2661.5,2660.6,3.0]
[1727440414543,0.7903,2661.2,2660.6,3.0]
[1727440414979,0.7903,2661.2,2660.4,3.0]
[1727440414980,4.5481,2661.2,2660.4,3.0]
[1727440415189,4.5481,2661.2,2660.5,0.757246]
[1727440415350,4.5481,2661.2,2660.4,6.75875]
[1727440415748,3.75808,2661.0,2660.0,0.77]
[1727440415971,5.46387805,2660.9,2660.2,3.75901]
[1727440416178,6.28453639,2660.9,2660.1,3.75924]
[1727440416380,10.04274639,2660.9,2660.1,3.75924]
[1727440416656,10.04274639,2660.9,2660.0,4.52932]
[1727440416657,6.28453639,2660.9,2659.9,3.75952]
[1727440416961,6.28453639,2660.9,2660.1,3.75925]
[1727440417161,3.75828,2660.8,2660.1,3.75925]
[1727440417400,6.28453639,2660.9,2660.1,3.75925]
[1727440417603,10.04273639,2660.9,2660.1,3.75925]
[1727440417756,6.28453639,2660.9,2660.1,7.51841]
[1727440417958,0.812,2660.9,2660.3,3.75897]
[1727440418187,0.812,2660.9,2660.1,4.63128968]
[1727440418188,3.7583,2660.8,2660.1,0.7969538]
[1727440418366,3.7583,2660.8,2660.1,3.75925]
[1727440418705,4.57015,2660.9,2660.1,3.75925]
[1727440419667,3.75827,2660.8,2659.9,3.75944]
[1727440419871,8.41042805,2660.6,2659.9,0.452959]
[1727440420071,8.41042805,2660.6,2659.6,3.75986]
[1727440420072,3.75897,2660.3,2659.6,3.75993]
[1727440420393,0.833,2660.5,2659.7,3.0]
[1727440420583,3.75886,2660.4,2659.7,3.98350596]
[1727440420892,3.75886,2660.4,2659.7,0.98350596]
[1727440421091,3.759,2660.3,2659.6,3.75987]
[1727440421297,0.833,2660.5,2659.5,3.0]
[1727440421604,3.75909,2660.3,2659.5,6.76002]
[1727440421760,3.75909,2660.3,2659.6,1.052014]
[1727440422155,5.1402578,2660.5,2659.7,3.75973]
[1727440422456,5.1402578,2660.5,2659.6,1.12720531]
[1727440422457,8.8990378,2660.5,2659.6,1.12720531]
[1727440422670,5.1402578,2660.5,2659.7,3.75981]
[1727440422894,5.1402578,2660.5,2659.7,4.6237177]
[1727440423586,4.59177,2660.5,2659.7,4.6237177]
[1727440423772,4.59177,2660.5,2659.7,4.6236477]
[1727440424102,0.833,2660.5,2659.8,3.75956]
[1727440424262,0.833,2660.5,2659.9,3.75942]
[1727440424460,0.833,2660.5,2660.0,0.38346051]
[1727440426598,4.5917,2660.5,2660.0,0.38346051]
[1727440426902,4.5917,2660.5,2659.7,9.14008253]
[1727440426903,0.833,2660.5,2659.9,3.75946]
[1727440427060,0.833,2660.5,2659.9,7.5189]
[1727440427266,0.833,2660.5,2660.1,3.75923]
[1727440427597,4.52259,2660.8,2660.1,3.75923]
[1727440428003,0.7643,2660.8,2660.1,3.75923]
[1727440428295,4.52256,2660.8,2660.1,3.75923]
[1727440428690,3.75842,2660.7,2660.0,0.75189]
[1727440428996,4.5226,2660.8,2660.1,0.827078]
[1727440429571,4.5226,2660.8,2659.9,3.75944]
[1727440429572,3.75843,2660.7,2659.9,3.75944]
[1727440429796,3.75855,2660.6,2659.9,3.75944]
[1727440430204,0.7614,2660.5,2659.7,5.38039253]
[1727440430534,0.7614,2660.5,2659.7,5.38033253]
[1727440430535,4.52016,2660.5,2659.7,5.38033253]
[1727440431021,4.52016,2660.5,2660.1,3.75923]
[1727440431022,0.7614,2660.5,2660.1,3.75923]
[1727440431164,0.7614,2660.5,2659.7,1.62062253]
[1727440431165,0.7614,2660.5,2659.9,7.51885]
[1727440431365,0.7614,2660.5,2660.0,0.751885]
[1727440431760,0.7614,2660.5,2659.9,3.7594]
[1727440431974,3.75891,2660.4,2659.7,4.54841253]
[1727440432290,4.52018,2660.5,2659.7,4.54846253]
[1727440432478,4.52018,2660.5,2659.8,0.45484125]
[1727440433179,0.7614,2660.5,2659.8,0.45484125]
[1727440433380,0.7614,2660.5,2659.9,3.8346842]
[1727440433566,0.7614,2660.5,2660.0,1.19175255]
[1727440434235,8.41007805,2660.9,2660.2,3.75903]
[1727440434236,0.8198,2660.8,2660.2,3.75903]
[1727440434906,0.8198,2660.8,2660.3,3.75886]
[1727440435109,4.57773,2661.1,2660.4,3.75881]
[1727440435308,3.758,2661.0,2660.4,0.38339845]
[1727440436095,4.57773,2661.1,2660.4,0.38339845]
[1727440436296,3.75798,2661.0,2660.4,0.38339845]
[1727440436695,0.8198,2661.1,2660.5,0.86056972]
[1727440437013,0.7722,2661.3,2660.7,3.75835]
[1727440437198,0.7722,2661.3,2660.8,3.75824]
[1727440437388,3.75735,2661.5,2660.8,3.75824]
[1727440437389,8.27111,2661.5,2660.8,0.07515616]
[1727440437888,4.51375,2661.5,2660.8,0.07515616]
[1727440438119,0.7564,2661.5,2660.9,3.7581]
[1727440438327,3.75706,2661.7,2661.0,0.788]
[1727440438782,3.75722,2661.6,2661.0,0.788]
[1727440439214,3.75706,2661.7,2661.0,0.788]
[1727440440022,0.7564,2661.8,2661.1,0.07514721]
[1727440440230,0.7564,2661.8,2661.1,3.83297721]
[1727440440384,4.51335,2661.8,2661.2,0.46209772]
[1727440440846,3.75715,2661.6,2661.2,0.46209772]
[1727440441128,0.7564,2661.8,2661.2,0.46209772]
[1727440441129,0.7564,2661.8,2661.2,0.53724471]
[1727440441433,0.7817,2662.0,2661.3,4.18698747]
[1727440441723,3.7565,2662.1,2661.5,0.7537]
[1727440441929,3.7565,2662.1,2661.6,0.45862259]
[1727440442087,3.75659,2662.0,2661.5,0.7537]
[1727440442286,3.75718,2661.6,2661.2,0.8034]
[1727440442507,3.75742,2661.4,2660.9,0.8034]
[1727440442804,3.75759,2661.3,2660.9,0.8034]
[1727440443510,3.75735,2661.5,2660.9,0.8034]
[1727440443719,0.7738,2661.3,2660.6,0.55]
[1727440443921,3.75771,2661.2,2660.7,0.508029]
[1727440444122,3.75771,2661.2,2660.5,4.53037]
[1727440444823,7.51551,2661.2,2660.5,4.53037]
[1727440445031,3.75771,2661.2,2660.5,4.53037]
[1727440445233,3.75771,2661.2,2660.6,0.453037]
[1727440445391,7.51549,2661.2,2660.6,0.453037]
[1727440445727,3.75771,2661.2,2660.6,0.453037]
[1727440446493,7.51549,2661.2,2660.6,0.453037]
[1727440446893,3.75771,2661.2,2660.6,0.453037]
[1727440448427,3.7575,2661.4,2660.7,4.33189415]
[1727440448636,3.75737,2661.5,2660.8,0.7993]
[1727440448932,3.75745,2661.4,2660.9,0.07515401]
[1727440449237,3.75745,2661.4,2660.9,0.58826488]
[1727440449406,2.3796379,2661.9,2661.2,0.7989]
[1727440449608,3.75666,2662.0,2661.3,0.07514413]
[1727440449813,3.75666,2662.0,2661.3,3.83261413]
[1727440450033,3.75666,2662.0,2661.4,0.46315141]
[1727440450751,3.75658,2662.0,2661.6,0.7778]
[1727440450910,3.75709,2661.7,2661.0,0.7778]
[1727440451111,3.75679,2661.9,2661.1,3.75774]
[1727440451346,3.75686,2661.8,2661.3,0.7778]
[1727440452017,1.5771379,2662.4,2661.5,0.7739]
[1727440452345,0.1282747,2663.7,2662.1,4.53033]
[1727440452346,3.75547,2662.8,2662.1,4.53033]
[1727440452553,4.57432,2662.9,2662.2,0.07511047]
[1727440453112,0.819,2662.9,2662.2,0.53565452]
[1727440453401,3.75517,2663.0,2662.2,0.53565452]
[1727440453903,1.5771379,2663.4,2661.8,3.0]
[1727440453904,4.65187805,2662.6,2661.8,3.0]
[1727440454235,3.75596,2662.5,2661.8,0.8268]
[1727440454397,3.75563,2662.7,2661.8,3.90192422]
[1727440454598,4.207473,2662.7,2661.8,4.66780464]
[1727440454802,3.75573,2662.6,2661.8,4.66780464]
[1727440455307,4.207473,2662.7,2661.8,4.66780464]
[1727440455507,4.207473,2662.7,2661.8,8.42460464]
[1727440455709,3.75574,2662.6,2661.9,1.29327186]
[1727440456406,3.75563,2662.7,2661.9,1.21814846]
[1727440456609,3.75587,2662.5,2661.9,1.21814846]
[1727440457003,3.75587,2662.5,2661.8,0.8268]
[1727440457546,3.75573,2662.6,2661.8,0.8268]
[1727440457750,3.75573,2662.6,2661.8,4.65872415]
[1727440458457,0.7628,2662.8,2661.9,3.6447182]
[1727440458752,0.7628,2662.8,2662.1,3.75642]
[1727440459150,8.40719805,2662.9,2662.2,0.90611711]
[1727440459560,3.75546,2662.8,2662.2,0.90611705]
[1727440459860,3.75531,2662.9,2662.2,4.66237705]
[1727440460520,3.75566,2662.7,2662.2,0.831]
[1727440461268,3.75574,2662.6,2662.2,0.831]
[1727440461452,3.75594,2662.5,2661.8,7.51076]
[1727440461662,3.7561,2662.4,2661.8,4.880767]
[1727440461968,3.7561,2662.4,2661.8,0.754]
[1727440461969,3.75638,2662.2,2661.8,0.754]
[1727440462176,3.75638,2662.2,2661.6,3.754]
[1727440463365,3.75629,2662.2,2661.6,3.754]
[1727440463871,3.75629,2662.2,2661.6,7.51112]
[1727440464233,3.75617,2662.3,2661.6,7.51112]
[1727440464463,3.75609,2662.4,2661.7,3.75689]
[1727440464639,3.75609,2662.4,2661.7,7.5889283]
[1727440464974,3.75609,2662.4,2661.7,3.75689]
[1727440465273,3.75609,2662.4,2661.7,7.51377]
[1727440465569,3.75615,2662.3,2661.7,3.75688]
[1727440465975,3.75623,2662.3,2661.6,0.754]
[1727440466135,3.75623,2662.3,2661.7,3.75698]
[1727440466339,0.830169,2662.4,2661.7,3.75698]
[1727440466583,0.92379671,2662.3,2661.7,3.75698]
[1727440466779,4.67998671,2662.3,2661.6,3.754]
[1727440466949,4.67998671,2662.3,2661.6,7.51113]
[1727440468738,4.67998671,2662.3,2661.6,3.754]
[1727440468942,0.46799867,2662.2,2661.6,3.754]
[1727440469142,0.46799867,2662.2,2661.6,7.51112]
[1727440469481,3.7557,2662.7,2661.7,4.51926]
[1727440469681,3.7557,2662.7,2661.8,3.75681]
[1727440469682,3.75587,2662.5,2661.8,3.75681]
[1727440469980,3.7557,2662.7,2661.7,8.27613]
[1727440470272,3.75572,2662.6,2661.7,4.51926]
[1727440470473,4.13129,2662.6,2661.9,3.75669]
[1727440470674,0.37557,2662.6,2662.0,3.75645]
[1727440471288,0.37557,2662.6,2662.0,3.75653]
[1727440471438,0.37557,2662.6,2662.1,0.7624]
[1727440473280,4.13131,2662.6,2662.1,0.7624]
[1727440474113,0.37557,2662.6,2662.1,0.7624]
[1727440474267,3.75587,2662.5,2662.1,0.7624]
[1727440474463,0.37557,2662.6,2662.1,0.7624]
[1727440474764,4.13137,2662.6,2662.1,0.7624]
[1727440474967,0.37557,2662.6,2662.1,0.7624]
[1727440475201,3.75565,2662.7,2662.1,0.7624]
[1727440475609,3.75574,2662.6,2662.1,0.7624]
[1727440475804,3.75565,2662.7,2662.1,0.7624]
[1727440475974,4.5558,2662.9,2662.1,0.7624]
[1727440475975,3.75544,2662.8,2662.1,0.7624]
[1727440476174,3.75575,2662.6,2662.1,0.7624]
[1727440476577,3.756,2662.4,2661.8,0.7585]
[1727440477405,3.75583,2662.6,2661.8,4.51527]
[1727440477611,3.75583,2662.6,2662.0,3.75654]
[1727440477905,3.75583,2662.6,2661.9,0.45903948]
[1727440477906,3.75588,2662.5,2661.9,0.45903948]
[1727440479495,3.75588,2662.5,2661.8,4.51527]
[1727440479708,3.75602,2662.4,2661.8,4.51527]
[1727440480072,3.75602,2662.4,2661.8,0.7585]
[1727440480073,4.57792,2662.4,2661.8,0.7585]
[1727440480373,3.75636,2662.2,2661.8,0.7585]
[1727440480811,4.213952,2662.3,2661.8,0.7585]
[1727440480967,3.75643,2662.1,2661.8,0.7585]
[1727440481969,3.7831602,2662.2,2661.4,0.8147]
[1727440482175,3.7568,2661.9,2661.4,0.8147]
[1727440482398,3.75727,2661.5,2660.6,4.55948]
[1727440482597,3.7571,2661.7,2660.7,0.07515016]
[1727440482919,3.75707,2661.7,2661.0,3.75798]
[1727440483078,3.75707,2661.7,2661.1,0.801]
[1727440483079,3.75717,2661.6,2661.1,0.801]
[1727440483811,3.75707,2661.7,2661.1,0.801]
[1727440484036,7.51417,2661.7,2661.1,0.801]
[1727440484610,3.75714,2661.6,2661.1,0.801]
[1727440485392,3.75688,2661.8,2661.2,3.75769]
[1727440485626,3.75688,2661.8,2661.1,0.801]
[1727440485827,3.75688,2661.8,2661.1,4.55881]
[1727440486030,3.75688,2661.8,2661.1,5.47313763]
[1727440487730,3.75685,2661.9,2661.1,0.801]
[1727440487731,3.75726,2661.6,2661.1,0.801]
[1727440488134,7.51451,2661.6,2661.1,0.801]
[1727440488345,3.75731,2661.5,2661.1,0.801]
[1727440490306,3.75725,2661.6,2661.1,0.801]
[1727440490487,7.5145,2661.6,2661.1,0.801]
[1727440490692,3.75725,2661.6,2661.1,0.801]
[1727440491443,3.75703,2661.7,2661.1,5.09731027]
[1727440491590,3.75703,2661.7,2661.1,5.02215734]
[1727440492098,3.75612,2662.4,2661.7,0.7805]
[1727440492352,4.55157,2662.5,2661.8,0.52888589]
[1727440492598,3.75587,2662.5,2661.8,0.07513289]